Cogmind - Beta 11.1 *** ADVENTURER MODE // 2022.09.03 @ 11:03:34 Player: Olexender Result: Destroyed by D-53 Grenadier with Mini Grenade Launcher Performance ------------- Evolutions (0) 0 Regions Visited (2) 400 Robots Destroyed (33) 165 Value Destroyed (648) 648 Prototype IDs (3) 60 Alien Tech Used (0) 0 Bonus (0) 0 TOTAL SCORE: 1273 Bonus ------- None Cogmind --------- Core Integrity 0/250 Matter 300/300 Energy 56/100 System Corruption 2% Temperature Cool (1) Movement Core (100) Ox1 Location -10/Mines Parts ------- > --- POWER (1) -------- (None) > --- PROPULSION (2) --- (None) > --- UTILITY (2) ------ Medium Storage Unit Weight Redist. System > --- WEAPON (2) ------- Advanced Beam Cannon > --- INVENTORY (10) --- Light Nuclear Core Compact Wheel Hover Unit Hover Unit Hover Unit Cargo Storage Unit Sensor Array Mining Claw Peak State ------------ > --- POWER ------------ Light Nuclear Core > --- PROPULSION ------- Aluminum Leg Aluminum Leg > --- UTILITY ---------- Medium Storage Unit Weight Redist. System > --- WEAPON ----------- EM Pulse Gun Advanced Beam Cannon > --- INVENTORY -------- Ion Engine Compact Wheel Hover Unit Hover Unit Hover Unit Cargo Storage Unit Sensor Array Seismic Detector Welding Torch [Rating: 13] Favorites ----------- Power Ion Engine Engine Ion Engine Power Core Light Nuclear Core Propulsion Aluminum Leg Leg Aluminum Leg Utility Weight Redist. System Device Weight Redist. System Storage Medium Storage Unit Weapon EM Pulse Gun Energy Gun EM Pulse Gun Energy Cannon Advanced Beam Cannon Ballistic Gun Assault Rifle Special Weapon Welding Torch Build | -11 -10 -10 ------- Run | Scr Mat Min Slots Evolved . | . . . Power . | . . . Propulsion . | . . . Utility . | . . . Weapon . | . . . Parts Attached 23 | 7 13 3 Power 4 | 1 1 2 Engine 1 | 1 . . Core 3 | . 1 2 Reactor . | . . . Propulsion 7 | 2 4 1 Treads . | . . . Leg 7 | 2 4 1 Wheel . | . . . Hover . | . . . Flight . | . . . Utility 5 | 2 3 . Device 3 | 1 2 . Storage 2 | 1 1 . Processor . | . . . Hackware . | . . . Protection . | . . . Artifact . | . . . Weapon 7 | 2 5 . Energy Gun 4 | 1 3 . Energy Cannon 1 | . 1 . Ballistic Gun 1 | 1 . . Ballistic Cannon . | . . . Launcher . | . . . Special Weapon 1 | . 1 . Impact Weapon . | . . . Slashing Weapon . | . . . Piercing Weapon . | . . . Special Melee Weapon . | . . . Unidentified Prototypes 1 | . 1 . Parts Lost 7 | . 3 4 Power 1 | . . 1 Propulsion 3 | . 1 2 Utility 1 | . 1 . Weapon 2 | . 1 1 Highest Loss Streak 4 | . 2 4 To Critical Strikes . | . . . Average Slot Usage (%) 95 | . 94 96 Engine 6 | . 9 . Core 6 | . 4 12 Leg 27 | . 27 27 Device 17 | . 18 14 Storage 8 | . 6 14 Energy Gun 13 | . 13 12 Energy Cannon 4 | . 1 14 Ballistic Gun 7 | . 10 . Naked Turns . | . . . Heaviest Build 21 | 10 21 21 Greatest Support 26 | 20 26 26 Greatest Overweight (x) 1 | 1 . . Average Overweight (x) . | . . . Largest Inventory Capacity 10 | 8 10 10 Average Capacity 7 | 5 7 10 Most Carried 10 | 5 10 10 Average Carried 7 | 3 6 9 Final Capacity 10 | 5 10 10 Final Carried 10 | 5 10 9 Class Distribution -------------------- 75% | Mutant 24% | Scavenger-Mutant Dominant Class ---------------- Mutant | -10/Materials Mutant | -10/Mines Resources | -11 -10 -10 ----------- Run | Scr Mat Min Matter Collected 590 | 300 234 56 Remotely 167 | 167 . . Salvage Created 1471 | 165 694 612 Parts 72 | 16 42 14 Haulers Intercepted 2 | . 2 . Recyclers Shooed 1 | . . 1 Parts Field Recycled . | . . . Retrieved Matter . | . . . Parts Self-Destructed . | . . . Prevented . | . . . Kills | -11 -10 -10 ------- Run | Scr Mat Min Combat Hostiles Destroyed 16 | . 12 4 Guns 13 | . 12 1 Cannons 3 | . . 3 Classes Destroyed 7 | 2 5 . Worker 1 | . 1 . Tunneler 5 | 5 . . Hauler 2 | . 2 . Recycler 7 | 1 1 5 Watcher 2 | . 2 . Swarmer 3 | . 3 . Grunt 13 | . 9 4 Best Kill Streak 6 | 6 4 4 Combat Bots Only 3 | . 3 2 Max Kills in Single Turn 1 | 1 1 1 Gunslinging . | . . . Exploded . | . . . Melee . | . . . Uniques/NPCs Destroyed . | . . . Combat | -11 -10 -10 -------- Run | Scr Mat Min Damage Taken 1147 | . 620 527 Core 264 | . 96 168 Absorbed by Shields . | . . . Core Remaining (%) 100 | 100 . . Volleys Fired 82 | 10 52 20 Largest 2 | 2 2 2 Hottest 108 | 60 60 108 Shots Fired 160 | 20 101 39 Gun 140 | 20 101 19 Cannon 20 | . . 20 Launcher . | . . . Special . | . . . Kinetic 59 | 10 49 . Thermal 20 | . . 20 Explosive . | . . . Electromagnetic 81 | 10 52 19 Robot Hit Streak 26 | 12 26 17 Robot Miss Streak 4 | 1 4 1 Penetration Max . | . . . Secondary Targets 5 | . 5 . Max Gunslinging Chain 1 | . 1 . Shots Hit Robots 121 | 15 76 30 Core Hits 53 | 6 32 15 Critical Kills . | . . . Critical Parts Destroyed . | . . . Critical Strikes 1 | . . 1 Corrupt 1 | . . 1 Melee Attacks . | . . . Impact . | . . . Slashing . | . . . Piercing . | . . . Sneak Attacks . | . . . Combat Hostiles . | . . . Follow-up Attacks . | . . . Damage Inflicted 2034 | 248 1238 548 Guns 1428 | 201 1029 198 Cannons 308 | . . 308 Explosions 295 | 47 209 39 Melee . | . . . Ramming 3 | . . 3 Kinetic 554 | 71 483 . Thermal 603 | 47 209 347 Explosive . | . . . Electromagnetic 874 | 130 546 198 Impact . | . . . Slashing . | . . . Piercing . | . . . Highest Corruption 2 | . 1 2 Average Corruption 1 | . 1 1 Corruption Purged . | . . . Corruption Blocked . | . . . Effects 4 | . 1 3 Message Errors 2 | . . 2 Energy Discharges 1 | . 1 . Weapon Failures 1 | . . 1 Overload Shots . | . . . Overflow Damage 18 | . 2 16 Projectiles 16 | . . 16 Explosions 2 | . 2 . Melee . | . . . Knockbacks . | . . . Impact . | . . . Kinetic . | . . . Secondary . | . . . Self-Inflicted Damage 134 | . 104 30 Shots 3 | . 2 1 Rammed . | . . . Targets Rammed 1 | . . 1 Kicked 1 | . . 1 Crushed . | . . . Highest Temperature 216 | 20 124 216 Average Temperature 61 | 20 42 83 Received Heat Transfer 318 | . 291 27 Siege Activations . | . . . Robots Corrupted . | . . . Combat Hostiles . | . . . Parts Fried 2 | . 1 1 Impact Corruptions . | . . . Robots Melted . | . . . Combat Hostiles . | . . . Parts Melted . | . . . Heat Transferred 955 | 100 250 605 Parts Sabotaged . | . . . Parts Stolen . | . . . Parts Stripped . | . . . Power Chain Reactions 5 | 2 2 1 Missiles Intercepted . | . . . Alert | -11 -10 -10 ------- Run | Scr Mat Min Peak Influence 292 | 30 292 142 Initial 16 | . 16 2 Average 94 | 12 117 56 Maximum Alert Level 1 | . 1 . Low Security (%) 84 | 100 77 100 Level 1 15 | . 22 . Level 2 . | . . . Level 3 . | . . . Level 4 . | . . . Level 5 . | . . . High Security . | . . . Max Security . | . . . Squads Dispatched 2 | . 2 . Investigation 2 | . 2 . Extermination . | . . . Reinforcement . | . . . Assault . | . . . Garrison . | . . . Intercept . | . . . Searches Triggered . | . . . Construction Impeded . | . . . Haulers Reinforced . | . . . Active Scanning Responses . | . . . Cargo Convoy Interrupts . | . . . Stealth | -11 -10 -10 --------- Run | Scr Mat Min Distress Signals . | . . . Communications Jammed . | . . . Distress Signals . | . . . Times Spotted 34 | . 18 16 Peak Tracking Total 14 | . 4 14 Tactical Retreats 1 | . . 1 Traps | -11 -10 -10 ------- Run | Scr Mat Min Traps Triggered 5 | . 5 . Indirectly . | . . . Trap Hack Attempts . | . . . Triggered . | . . . Disarmed . | . . . Reprogrammed . | . . . Reused . | . . . Traps Extracted . | . . . Installed . | . . . Triggered . | . . . Machines | -11 -10 -10 ---------- Run | Scr Mat Min Machines Disabled 1 | . 1 . Max in Single Turn 1 | . 1 . Machines Sabotaged . | . . . Garrisons Compromised . | . . . Overloaded Fab Kills . | . . . Hacking | -11 -10 -10 --------- Run | Scr Mat Min Machines Accessed 9 | . 9 . Terminals 7 | . 7 . Fabricators . | . . . Repair Stations . | . . . Recycling Units 2 | . 2 . Scanalyzers . | . . . Garrison Access . | . . . Total Hacks 25 | . 25 . Successful 14 | . 14 . Failed 11 | . 11 . Catastrophic 2 | . 2 . Database Lockouts . | . . . Manual . | . . . Terminals 20 | . 20 . Fabricators . | . . . Repair Stations . | . . . Recycling Units 5 | . 5 . Scanalyzers . | . . . Garrison Access . | . . . Terminal Hacks 11 | . 11 . Prototype ID Bank 1 | . 1 . Emergency Access Points 1 | . 1 . Repair Station Index 1 | . 1 . Unreport Threat 2 | . 2 . Locate Traps 3 | . 3 . Surveillance Status 2 | . 2 . Zone Layout 1 | . 1 . Fabricator Hacks . | . . . Repair Station Hacks . | . . . Recycling Unit Hacks 3 | . 3 . Report Inventory 2 | . 2 . Retrieve Components 1 | . 1 . Scanalyzer . | . . . Garrison Access Hacks . | . . . Unauthorized Hacks . | . . . Terminals . | . . . Fabricators . | . . . Repair Stations . | . . . Recycling Units . | . . . Scanalyzers . | . . . Garrison Access . | . . . Data Cores Recovered . | . . . Used . | . . . Hacking Detections 9 | . 9 . Full Trace Events 5 | . 5 . Feedback Events . | . . . Feedback Blocked . | . . . Robot Schematics Acquired . | . . . Robots Built . | . . . Authchips . | . . . Time . | . . . Total Robot Build Rating . | . . . Part Schematics Acquired . | . . . Parts Built . | . . . Authchips . | . . . Time . | . . . Total Part Build Rating . | . . . Parts Repaired . | . . . Time . | . . . Parts Recycled . | . . . Recycled Matter . | . . . Retrieved Matter . | . . . Retrieved Components 1 | . 1 . Parts Scanalyzed . | . . . Part Schematics Acquired . | . . . Parts Damaged . | . . . Bothacking | -11 -10 -10 ------------ Run | Scr Mat Min Used RIF Installer . | . . . Robots Hacked . | . . . Non-combat . | . . . Combat . | . . . Robot Hacks Applied . | . . . Relay Couplers Released . | . . . Fabnet Peak Effective % . | . . . Robots Rewired . | . . . Allies Hacked . | . . . Hacks Repelled . | . . . Allies | -11 -10 -10 -------- Run | Scr Mat Min Total Allies . | . . . Largest Group . | . . . Highest-Rated Group . | . . . Highest-Rated Ally . | . . . Total Orders . | . . . Ally Attacks . | . . . Total Damage . | . . . Kills . | . . . Allies Corrupted . | . . . Allies Melted . | . . . Intel | -11 -10 -10 ------- Run | Scr Mat Min Robot Analysis Total . | . . . Derelict Logs Recovered 2 | . . 2 Drone Launches . | . . . Drone Recoveries . | . . . Exploration | -11 -10 -10 ------------- Run | Scr Mat Min Turns Passed 1539 | 113 1022 404 Spaces Moved 1014 | 62 683 269 Core 12 | 12 . . Treads . | . . . Legs 1002 | 50 683 269 Wheels . | . . . Hover . | . . . Flight . | . . . Fastest Speed 50 | 50 120 120 Average Speed 119 | 107 120 120 Slowest Speed 120 | 120 120 120 Overloaded Moves . | . . . Propulsion Burnouts . | . . . Robots Hopped . | . . . Cave-ins Triggered . | . . . Exploration Rate (%) 50 | 5 99 47 Regions Visited 2 Branch Regions 1 Pre-discovered Areas . | . . . Known Exits Taken . | . . . Unknown Exits Taken 2 | 1 1 . Scrap Searched . | . . . Spaces Dug . | . . . Terrain Destroyed 34 | 5 24 5 Melee . | . . . Projectile . | . . . AOE 34 | 5 24 5 Terrain Rammed . | . . . Walls Destroyed . | . . . Machines Disabled . | . . . Actions | -11 -10 -10 --------- Run | Scr Mat Min Total 1187 | 88 786 313 Wait 27 | . 13 14 Move 1012 | 61 682 269 Hop . | . . . Pick Up 24 | 9 14 1 Fast Attach 7 | 2 5 . Attach 8 | 5 3 . Detach 1 | 1 . . Swap 8 | . 5 3 Drop 17 | . 12 5 Fire 82 | 10 52 20 Melee . | . . . Ram . | . . . Kick 1 | . . 1 Crush . | . . . Escape Stasis . | . . . Rewire . | . . . Trap . | . . . Miscellaneous . | . . . Route ------- -11/Scrapyard -10/Materials (discovered 4 exits: [*Mat x3] / [*Min]) -10/Mines (discovered 1 exit: [*Mat]) History --------- Turn | Location | Event 7 | -11/Scrapyard | Discovered new exit (range 14) 114 | -11/Scrapyard | Entered Materials 309 | -10/Materials | Build established: Mutant 429 | -10/Materials | Discovered new exit (range 14) 588 | -10/Materials | Discovered new exit (range 4) 620 | -10/Materials | Build established: Scavenger-Mutant 903 | -10/Materials | Discovered new exit (range 6) 931 | -10/Materials | Discovered new exit (range 17) 980 | -10/Materials | Build established: Mutant 1136 | -10/Materials | Entered Mines 1225 | -10/Mines | Discovered new exit (range 15) 1241 | -10/Mines | Learned Materials stockpile data 1457 | -10/Mines | Learned 8 Materials zone layouts 1484 | -10/Mines | Assembled infested the area 1512 | -10/Mines | Core integrity fell below 50% 1523 | -10/Mines | Core integrity fell below 20% 1540 | -10/Mines | Destroyed by D-53 Grenadier with Mini Grenade Launcher Last Messages --------------- 01512_ The unstable cave ceiling collapses. 01513_ EM Pulse Gun destroyed. 01514_ The unstable cave ceiling collapses. 01514_ U-05 Engineer builds a Wall. 01515_ The unstable cave ceiling collapses. 01516_ U-05 Engineer destroyed. 01517_ The unstable cave ceiling collapses. 01517_ R-06 Scavenger destroyed. 01519_ The unstable cave ceiling collapses. 01522_ Aluminum Leg destroyed. 01522_ U-05 Engineer lays Concrete. 01524_ The unstable cave ceiling collapses. 01524_ as-20959 destroyed. 01524_ as-88709 destroyed. 01524_ U-05 Engineer builds a Wall. 01527_ The unstable cave ceiling collapses. 01528_ U-05 Engineer lays Concrete. 01530_ The unstable cave ceiling collapses. 01530_ U-05 Engineer builds a Wall. 01540_ Aluminum Leg destroyed. Map ----- +----------------------------------------------------+ | ### ####????# """ """ """ #?????????????? | | #### ##???# #?????????????? | | #?## ##### """ """ """ #?????????????? | | #??## # """ """ """ #?????????????? | | #????## #### # """ """ """ #?????????????? | | #?????## ##??# # #?????????????? | | ######## #???# # """ """ """ #########?????? | | #???# # """ """ """ ## #?????? | | ##########???# # """ """%""" ## """ #?????? | | ?????????????# # %% ## """ #?????? | | ##???????????# # ## """ #?????? | | ##??????????# ##### ########## #?????? | | ###???????# < #?????? | | ############### ########## #?????? | | # ##???### #????????# #?????? | | # ##?## #????????########?????? | | % ### #?????????????????????? | | % ! # #?????????????????????? | | # ! #?????????????????????? | | # ##?????????????????????? | | #####??????????????????????? | | # #?????????????????????????? | | ### # # ###????????????????????????? | | ??###### # ## #?####????????????????? | | ???????####### # # ## #???????????? | | ?????????????# dd @ #???????????? | | ?????? # ##???????????? | | ?? # # ######????????????? | | ?? ################?####?????????????????? | | ???????????????????????????????????????????? | | ???????????????????????????????????????????? | | ???????????????????????????????????????????? | | ???????????????????????????????????????????? | | ???????????????????????????????????????????? | | ???????????????????????????????????????????? | | ???????????????????????????????????????????? | | ???????????????????????????????????????????? | | ???????????????????????????????????????????? | | ???????????????????????????????????????????? | | ???????????????????????????????????????????? | | ???????????????????????????????????????????? | | ???????????????????????????????????????????? | | ???????????????????????????????????????????? | | ???????????????????????????????????????????? | | ???????????????????????????????????????????? | | ???????????????????????????????????????????? | | ???????????????????????????????????????????? | | ???????????????????????????????????????????? | | ???????????????????????????????????????????? | | ???????????????????????????????????????????? | +----------------------------------------------------+ Best States ------------- Heat Dissipation 25 Energy Generation 14 Energy Capacity 250 Matter Stores 300 Matter Capacity 300 Sight Range 16 Terrain Scan Density 10 Additional Mass Support 6 Resistance: KI 20 Resistance: TH 20 Resistance: EX 20 Resistance: EM 20 Resistance: I 20 Resistance: S 20 Resistance: P 20 Evasion (%) 55 Offensive Hacking 10 Item Schematics ----------------- None Robot Schematics ------------------ None Fabricated ------------ Nothing Alien Tech Used ----------------- None Achievements -------------- None Challenges ------------ None Game ------ Seed BackupXenonDissipator Manual? 0 Play Time 00:16:58 Cumulative 70.0 hours Start 2022.09.03 @ 10:46:30 End 2022.09.03 @ 11:03:34 Sessions 1 Manual Loads 0 Difficulty Adventurer Special Mode None Game No. 79 Rogue 0 Adventurer 79 Explorer 0 Win Type - Total 0 Types 0/0/0/0/0/0/0/0/0 Lore% 35 Gallery% 47 Achievement% 33 Wizard Run 0 Options --------- ASCII 0 Keyboard 0 Movement Mouse Keybinds 0 Fullscreen 1 Font 18/SmallcapsGlow Map View 112x50 Tactical HUD 1 Map Filters NONE Filters NONE Steam 1 RUN: b2a33b34-f99e-4a0e-bdd8-80811e70de27